[Event "December 19 Early 2023"]
[Site "https://www.chess.com"]
[Date "2023.12.19"]
[Round "4"]
[White "Nilsson, Joakim"]
[Black "Fromm, Marius"]
[Result "1-0"]
[Board "101"]
[TimeControl "180+1"]
[WhiteFideId "1723383"]
[BlackFideId "12993190"]
[WhiteElo "2143"]
[BlackElo "2335"]
[WhiteTeam "SWE"]
[BlackTeam "GER"]
[WhiteClock "0:00:15"]
[BlackClock "0:00:09"]

1. d4 {[%clk 0:03:00]}  d5 {[%clk 0:02:59]} 2. Nf3 {[%clk 0:02:59]}  Nc6 {[%clk 0:03:00]} 3. Bf4 {[%clk 0:02:56]}  Bg4 {[%clk 0:02:58]} 4. e3 {[%clk 0:02:54]}  e6 {[%clk 0:02:58]} 5. Nbd2 {[%clk 0:02:54]}  Bd6 {[%clk 0:02:58]} 6. Bg3 {[%clk 0:02:55]}  Nf6 {[%clk 0:02:56]} 7. c3 {[%clk 0:02:54]}  O-O {[%clk 0:02:54]} 8. Qc2 {[%clk 0:02:53]}  Bf5 {[%clk 0:02:50]} 9. Bd3 {[%clk 0:02:53]}  Bxd3 {[%clk 0:02:50]} 10. Qxd3 {[%clk 0:02:53]}  Qe7 {[%clk 0:02:43]} 11. Ne5 {[%clk 0:02:51]}  Bxe5 {[%clk 0:02:42]} 12. dxe5 {[%clk 0:02:52]}  Nd7 {[%clk 0:02:42]} 13. Nf3 {[%clk 0:02:49]}  Nc5 {[%clk 0:02:36]} 14. Qc2 {[%clk 0:02:47]}  Ne4 {[%clk 0:02:06]} 15. Bh4 {[%clk 0:02:47]}  g5 {[%clk 0:02:01]} 16. Bg3 {[%clk 0:02:47]}  f6 {[%clk 0:01:54]} 17. exf6 {[%clk 0:02:36]}  Rxf6 {[%clk 0:01:55]} 18. O-O {[%clk 0:02:23]}  Raf8 {[%clk 0:01:54]} 19. c4 {[%clk 0:02:17]}  h5 {[%clk 0:01:48]} 20. cxd5 {[%clk 0:02:10]}  exd5 {[%clk 0:01:49]} 21. Qb3 {[%clk 0:01:53]}  Qe6 {[%clk 0:01:22]} 22. Rad1 {[%clk 0:01:40]}  h4 {[%clk 0:01:06]} 23. Bxc7 {[%clk 0:01:39]}  h3 {[%clk 0:01:01]} 24. Rxd5 {[%clk 0:00:30]}  hxg2 {[%clk 0:00:54]} 25. Kxg2 {[%clk 0:00:30]}  Rxf3 {[%clk 0:00:50]} 26. Bg3 {[%clk 0:00:26]}  Qf7 {[%clk 0:00:15]} 27. Qd3 {[%clk 0:00:15]}  Qf5 {[%clk 0:00:09]} 28. Rxf5 {[%clk 0:00:15]} 1-0

[Event "December 19 Early 2023"]
[Site "https://www.chess.com"]
[Date "2023.12.19"]
[Round "4"]
[White "Salinas Tomas, Daniel"]
[Black "Yeritsyan, Hayk"]
[Result "0-1"]
[Board "102"]
[TimeControl "180+1"]
[WhiteFideId "24597716"]
[BlackFideId "13307320"]
[WhiteElo "2172"]
[BlackElo "2130"]
[WhiteTeam "ESP"]
[BlackTeam "ARM"]
[WhiteClock "0:01:10"]
[BlackClock "0:01:38"]

1. Nf3 {[%clk 0:03:00]}  Nf6 {[%clk 0:02:59]} 2. g3 {[%clk 0:03:00]}  g6 {[%clk 0:02:59]} 3. Bg2 {[%clk 0:03:01]}  Bg7 {[%clk 0:03:00]} 4. O-O {[%clk 0:03:01]}  O-O {[%clk 0:03:00]} 5. c4 {[%clk 0:02:59]}  c5 {[%clk 0:02:59]} 6. d4 {[%clk 0:02:59]}  cxd4 {[%clk 0:02:59]} 7. Nxd4 {[%clk 0:03:00]}  Nc6 {[%clk 0:02:59]} 8. Nc2 {[%clk 0:02:57]}  d6 {[%clk 0:02:58]} 9. Nc3 {[%clk 0:02:55]}  Nd7 {[%clk 0:02:45]} 10. Qd2 {[%clk 0:02:44]}  Qa5 {[%clk 0:02:36]} 11. Rb1 {[%clk 0:01:54]}  Nb6 {[%clk 0:02:26]} 12. b4 {[%clk 0:01:47]}  Qe5 {[%clk 0:02:26]} 13. Nd5 {[%clk 0:01:37]}  Nxc4 {[%clk 0:02:15]} 14. Qd3 {[%clk 0:01:37]}  b5 {[%clk 0:01:47]} 15. Bf4 {[%clk 0:01:33]}  Qh5 {[%clk 0:01:41]} 16. Nxe7+ {[%clk 0:01:22]}  Nxe7 {[%clk 0:01:41]} 17. Bc6 {[%clk 0:01:10]}  Nxc6 {[%clk 0:01:38]} 0-1

[Event "December 19 Early 2023"]
[Site "https://www.chess.com"]
[Date "2023.12.19"]
[Round "4"]
[White "Marin Pincheira, Carlos"]
[Black "Gubajdullin, Alexei"]
[Result "0-1"]
[Board "105"]
[TimeControl "180+1"]
[WhiteFideId "3407543"]
[BlackFideId "4141202"]
[WhiteElo "2080"]
[BlackElo "2274"]
[WhiteTeam "CHI"]
[BlackTeam "RUS"]
[WhiteClock "0:00:04"]
[BlackClock "0:01:36"]

1. Nf3 {[%clk 0:03:00]}  Nf6 {[%clk 0:02:54]} 2. d4 {[%clk 0:02:59]}  c5 {[%clk 0:02:52]} 3. c4 {[%clk 0:02:59]}  cxd4 {[%clk 0:02:51]} 4. Nxd4 {[%clk 0:02:59]}  e5 {[%clk 0:02:51]} 5. Nb5 {[%clk 0:02:57]}  d5 {[%clk 0:02:50]} 6. cxd5 {[%clk 0:02:54]}  Bc5 {[%clk 0:02:49]} 7. e3 {[%clk 0:02:50]}  O-O {[%clk 0:02:49]} 8. N5c3 {[%clk 0:02:45]}  e4 {[%clk 0:02:47]} 9. Be2 {[%clk 0:02:39]}  Re8 {[%clk 0:02:45]} 10. a3 {[%clk 0:02:28]}  Bf5 {[%clk 0:02:34]} 11. b4 {[%clk 0:02:23]}  Bd6 {[%clk 0:02:33]} 12. h3 {[%clk 0:02:09]}  Nbd7 {[%clk 0:02:32]} 13. Bb2 {[%clk 0:02:08]}  Ne5 {[%clk 0:02:27]} 14. Nd2 {[%clk 0:02:05]}  Rc8 {[%clk 0:02:19]} 15. Rc1 {[%clk 0:02:03]}  Bb8 {[%clk 0:02:17]} 16. O-O {[%clk 0:01:53]}  Qd6 {[%clk 0:02:09]} 17. Nb5 {[%clk 0:01:52]}  Qxd5 {[%clk 0:02:04]} 18. Nc4 {[%clk 0:01:07]}  Nd3 {[%clk 0:02:00]} 19. Bxd3 {[%clk 0:00:59]}  exd3 {[%clk 0:02:00]} 20. Nd4 {[%clk 0:00:48]}  Be4 {[%clk 0:01:47]} 21. f3 {[%clk 0:00:20]}  Rxc4 {[%clk 0:01:45]} 22. Rxc4 {[%clk 0:00:15]}  Qxc4 {[%clk 0:01:45]} 23. fxe4 {[%clk 0:00:16]}  Nxe4 {[%clk 0:01:45]} 24. Qf3 {[%clk 0:00:16]}  Nd2 {[%clk 0:01:36]} 25. Qg4 {[%clk 0:00:14]}  Nxf1 {[%clk 0:01:36]} 26. Nf5 {[%clk 0:00:04]}  Qxg4 {[%clk 0:01:36]} 0-1

[Event "December 19 Early 2023"]
[Site "https://www.chess.com"]
[Date "2023.12.19"]
[Round "4"]
[White "Smirnov, Alexandr A."]
[Black "Vigoa Apecheche, Yanira"]
[Result "1/2-1/2"]
[Board "107"]
[TimeControl "180+1"]
[WhiteFideId "24104396"]
[BlackFideId "3507041"]
[WhiteElo "2152"]
[BlackElo "2276"]
[WhiteTeam "RUS"]
[BlackTeam "USA"]
[WhiteClock "0:00:19"]
[BlackClock "0:00:16"]

1. e4 {[%clk 0:03:00]}  c5 {[%clk 0:02:59]} 2. Nf3 {[%clk 0:03:00]}  Nc6 {[%clk 0:02:58]} 3. Nc3 {[%clk 0:02:59]}  g6 {[%clk 0:02:57]} 4. d4 {[%clk 0:02:57]}  cxd4 {[%clk 0:02:57]} 5. Nxd4 {[%clk 0:02:58]}  Bg7 {[%clk 0:02:57]} 6. Nb3 {[%clk 0:02:59]}  Nf6 {[%clk 0:02:57]} 7. Be2 {[%clk 0:03:00]}  O-O {[%clk 0:02:57]} 8. O-O {[%clk 0:03:00]}  d6 {[%clk 0:02:55]} 9. Re1 {[%clk 0:03:01]}  Be6 {[%clk 0:02:55]} 10. Bf1 {[%clk 0:03:01]}  Rc8 {[%clk 0:02:55]} 11. Bg5 {[%clk 0:03:01]}  Na5 {[%clk 0:02:55]} 12. Nd5 {[%clk 0:02:58]}  Bxd5 {[%clk 0:02:33]} 13. exd5 {[%clk 0:02:59]}  Nc4 {[%clk 0:02:30]} 14. Bxc4 {[%clk 0:02:44]}  Rxc4 {[%clk 0:02:30]} 15. Qd3 {[%clk 0:02:38]}  Qc8 {[%clk 0:01:58]} 16. c3 {[%clk 0:01:49]}  Re8 {[%clk 0:01:54]} 17. Rad1 {[%clk 0:01:48]}  h6 {[%clk 0:01:52]} 18. Bc1 {[%clk 0:01:40]}  Ra4 {[%clk 0:01:22]} 19. a3 {[%clk 0:01:40]}  Qc4 {[%clk 0:01:14]} 20. Qxc4 {[%clk 0:01:38]}  Rxc4 {[%clk 0:01:15]} 21. Na5 {[%clk 0:01:30]}  Rc7 {[%clk 0:01:08]} 22. Be3 {[%clk 0:01:28]}  b6 {[%clk 0:01:05]} 23. Nb3 {[%clk 0:01:21]}  Kf8 {[%clk 0:00:50]} 24. Re2 {[%clk 0:01:12]}  g5 {[%clk 0:00:31]} 25. f3 {[%clk 0:01:09]}  Nd7 {[%clk 0:00:28]} 26. Nd4 {[%clk 0:01:07]}  Bxd4 {[%clk 0:00:25]} 27. Bxd4 {[%clk 0:01:08]}  f6 {[%clk 0:00:25]} 28. g3 {[%clk 0:01:06]}  Nc5 {[%clk 0:00:23]} 29. Kf2 {[%clk 0:01:03]}  Kf7 {[%clk 0:00:21]} 30. Ke3 {[%clk 0:00:59]}  Nd7 {[%clk 0:00:19]} 31. Kd3 {[%clk 0:00:53]}  Ne5+ {[%clk 0:00:19]} 32. Bxe5 {[%clk 0:00:53]}  fxe5 {[%clk 0:00:19]} 33. c4 {[%clk 0:00:51]}  Kg6 {[%clk 0:00:20]} 34. g4 {[%clk 0:00:50]}  Rf8 {[%clk 0:00:20]} 35. Re3 {[%clk 0:00:46]}  Rf4 {[%clk 0:00:20]} 36. b3 {[%clk 0:00:46]}  a6 {[%clk 0:00:19]} 37. a4 {[%clk 0:00:45]}  Rc5 {[%clk 0:00:19]} 38. Ra1 {[%clk 0:00:34]}  a5 {[%clk 0:00:18]} 39. Rf1 {[%clk 0:00:32]}  Kg7 {[%clk 0:00:16]} 40. Re4 {[%clk 0:00:32]}  Kg6 {[%clk 0:00:17]} 41. Rxf4 {[%clk 0:00:31]}  gxf4 {[%clk 0:00:17]} 42. h4 {[%clk 0:00:32]}  Rc8 {[%clk 0:00:17]} 43. Ke4 {[%clk 0:00:31]}  Kf6 {[%clk 0:00:17]} 44. Rg1 {[%clk 0:00:31]}  Rg8 {[%clk 0:00:17]} 45. Rh1 {[%clk 0:00:28]}  Rc8 {[%clk 0:00:16]} 46. Rg1 {[%clk 0:00:26]}  Rg8 {[%clk 0:00:16]} 47. Rg2 {[%clk 0:00:26]}  Rc8 {[%clk 0:00:16]} 48. Rg1 {[%clk 0:00:19]} 1/2-1/2

[Event "December 19 Early 2023"]
[Site "https://www.chess.com"]
[Date "2023.12.19"]
[Round "4"]
[White "Zepeda Berlanga, Jan Enrique"]
[Black "Boyer, Mahel"]
[Result "0-1"]
[Board "112"]
[TimeControl "180+1"]
[WhiteFideId "5132355"]
[BlackFideId "45102422"]
[WhiteElo "1680"]
[BlackElo "2449"]
[WhiteTeam "MEX"]
[BlackTeam "FRA"]
[WhiteClock "0:00:23"]
[BlackClock "0:00:22"]

1. e4 {[%clk 0:03:00]}  Nc6 {[%clk 0:02:58]} 2. Nf3 {[%clk 0:02:58]}  d5 {[%clk 0:02:59]} 3. exd5 {[%clk 0:02:54]}  Qxd5 {[%clk 0:03:00]} 4. Nc3 {[%clk 0:02:55]}  Qh5 {[%clk 0:03:00]} 5. Be2 {[%clk 0:02:52]}  Bg4 {[%clk 0:02:20]} 6. d3 {[%clk 0:02:44]}  O-O-O {[%clk 0:02:18]} 7. Be3 {[%clk 0:02:42]}  e5 {[%clk 0:02:00]} 8. Ne4 {[%clk 0:01:58]}  f5 {[%clk 0:01:42]} 9. Ng3 {[%clk 0:01:58]}  Qe8 {[%clk 0:01:34]} 10. Bg5 {[%clk 0:01:51]}  Nf6 {[%clk 0:01:32]} 11. Nd2 {[%clk 0:01:36]}  Bxe2 {[%clk 0:01:16]} 12. Qxe2 {[%clk 0:01:32]}  Nd4 {[%clk 0:01:16]} 13. Qd1 {[%clk 0:01:29]}  Qc6 {[%clk 0:01:17]} 14. c3 {[%clk 0:01:19]}  Ne6 {[%clk 0:00:59]} 15. Qf3 {[%clk 0:01:11]}  Nxg5 {[%clk 0:00:42]} 16. Qxf5+ {[%clk 0:01:03]}  Ne6 {[%clk 0:00:42]} 17. Nge4 {[%clk 0:00:54]}  Kb8 {[%clk 0:00:21]} 18. Nxf6 {[%clk 0:00:30]}  gxf6 {[%clk 0:00:22]} 19. Qxf6 {[%clk 0:00:31]}  Bg7 {[%clk 0:00:22]} 20. Qh4 {[%clk 0:00:23]}  Nf4 {[%clk 0:00:22]} 0-1

[Event "December 19 Early 2023"]
[Site "https://www.chess.com"]
[Date "2023.12.19"]
[Round "4"]
[White "Koellner, Ruben Gideon"]
[Black "Caceres Benitez, Arturo Eduardo"]
[Result "1-0"]
[Board "117"]
[TimeControl "180+1"]
[WhiteFideId "12993093"]
[BlackFideId "3710769"]
[WhiteElo "2347"]
[BlackElo "2045"]
[WhiteTeam "GER"]
[BlackTeam "PAR"]
[WhiteClock "0:01:30"]
[BlackClock "0:00:20"]

1. d4 {[%clk 0:03:00]}  Nf6 {[%clk 0:02:42]} 2. Nf3 {[%clk 0:03:00]}  g6 {[%clk 0:02:37]} 3. Nbd2 {[%clk 0:02:59]}  Bg7 {[%clk 0:02:37]} 4. e4 {[%clk 0:02:57]}  d6 {[%clk 0:02:37]} 5. Bc4 {[%clk 0:02:54]}  O-O {[%clk 0:02:36]} 6. O-O {[%clk 0:02:53]}  c6 {[%clk 0:02:33]} 7. Bb3 {[%clk 0:02:48]}  Nfd7 {[%clk 0:02:28]} 8. c3 {[%clk 0:02:46]}  Na6 {[%clk 0:02:26]} 9. Re1 {[%clk 0:02:44]}  Nc7 {[%clk 0:02:23]} 10. e5 {[%clk 0:02:36]}  d5 {[%clk 0:02:20]} 11. Nf1 {[%clk 0:02:34]}  e6 {[%clk 0:02:20]} 12. h4 {[%clk 0:02:33]}  Re8 {[%clk 0:01:54]} 13. h5 {[%clk 0:02:32]}  c5 {[%clk 0:01:52]} 14. N1h2 {[%clk 0:02:21]}  b5 {[%clk 0:01:45]} 15. Ng4 {[%clk 0:02:19]}  a5 {[%clk 0:01:42]} 16. Bc2 {[%clk 0:02:18]}  b4 {[%clk 0:01:31]} 17. Bg5 {[%clk 0:02:16]}  f6 {[%clk 0:01:26]} 18. exf6 {[%clk 0:02:16]}  Nxf6 {[%clk 0:01:26]} 19. hxg6 {[%clk 0:02:15]}  h5 {[%clk 0:01:21]} 20. Nxf6+ {[%clk 0:02:01]}  Bxf6 {[%clk 0:01:22]} 21. Bf4 {[%clk 0:02:00]}  Nb5 {[%clk 0:00:55]} 22. Ne5 {[%clk 0:01:58]}  Bxe5 {[%clk 0:00:38]} 23. Rxe5 {[%clk 0:01:40]}  bxc3 {[%clk 0:00:36]} 24. Qxh5 {[%clk 0:01:36]}  Ra7 {[%clk 0:00:37]} 25. bxc3 {[%clk 0:01:30]}  Nxc3 {[%clk 0:00:32]} 26. Re3 {[%clk 0:01:30]}  cxd4 {[%clk 0:00:20]} 27. Be5 {[%clk 0:01:30]} 1-0

[Event "December 19 Early 2023"]
[Site "https://www.chess.com"]
[Date "2023.12.19"]
[Round "4"]
[White "Ljukin, Sergei"]
[Black "Gontcharov, Vladislav"]
[Result "0-1"]
[Board "119"]
[TimeControl "180+1"]
[WhiteFideId "14102200"]
[BlackFideId "4123492"]
[WhiteElo "2319"]
[BlackElo "2420"]
[WhiteTeam "UKR"]
[BlackTeam "RUS"]
[WhiteClock "0:00:00"]
[BlackClock "0:00:14"]

1. e4 {[%clk 0:02:55]}  e6 {[%clk 0:02:59]} 2. d4 {[%clk 0:02:54]}  d5 {[%clk 0:02:59]} 3. Nc3 {[%clk 0:02:54]}  Nc6 {[%clk 0:02:58]} 4. Nf3 {[%clk 0:02:41]}  Nf6 {[%clk 0:02:57]} 5. exd5 {[%clk 0:02:40]}  exd5 {[%clk 0:02:56]} 6. Bb5 {[%clk 0:02:40]}  Bd7 {[%clk 0:02:46]} 7. Bf4 {[%clk 0:02:33]}  Bb4 {[%clk 0:02:41]} 8. Qe2+ {[%clk 0:02:29]}  Ne7 {[%clk 0:02:39]} 9. Bd3 {[%clk 0:02:21]}  O-O {[%clk 0:02:31]} 10. O-O {[%clk 0:02:20]}  Re8 {[%clk 0:02:16]} 11. Ne5 {[%clk 0:01:58]}  Bf5 {[%clk 0:02:04]} 12. Bxf5 {[%clk 0:01:05]}  Nxf5 {[%clk 0:02:03]} 13. Qd3 {[%clk 0:01:05]}  Bxc3 {[%clk 0:01:50]} 14. bxc3 {[%clk 0:00:59]}  Nd6 {[%clk 0:01:50]} 15. c4 {[%clk 0:00:55]}  dxc4 {[%clk 0:01:45]} 16. Nxc4 {[%clk 0:00:51]}  Nxc4 {[%clk 0:01:38]} 17. Qxc4 {[%clk 0:00:51]}  c6 {[%clk 0:01:38]} 18. Rab1 {[%clk 0:00:43]}  Qd7 {[%clk 0:01:36]} 19. Rfe1 {[%clk 0:00:41]}  Nd5 {[%clk 0:01:33]} 20. Bg3 {[%clk 0:00:36]}  Rxe1+ {[%clk 0:01:29]} 21. Rxe1 {[%clk 0:00:35]}  Re8 {[%clk 0:01:29]} 22. Qf1 {[%clk 0:00:19]}  Re6 {[%clk 0:01:27]} 23. c4 {[%clk 0:00:16]}  Nb6 {[%clk 0:01:24]} 24. Rd1 {[%clk 0:00:11]}  Re4 {[%clk 0:01:09]} 25. Qd3 {[%clk 0:00:10]}  f5 {[%clk 0:01:07]} 26. h3 {[%clk 0:00:09]}  Qf7 {[%clk 0:01:03]} 27. d5 {[%clk 0:00:07]}  Rxc4 {[%clk 0:00:40]} 28. d6 {[%clk 0:00:06]}  Nd7 {[%clk 0:00:37]} 29. Re1 {[%clk 0:00:06]}  f4 {[%clk 0:00:31]} 30. Bh2 {[%clk 0:00:05]}  b5 {[%clk 0:00:25]} 31. g3 {[%clk 0:00:03]}  c5 {[%clk 0:00:14]} 32. gxf4 {[%clk 0:00:03]}  Rd4 {[%clk 0:00:14]} 33. Qe3 {[%clk 0:00:02]}  Rxd6 {[%clk 0:00:14]} 34. Qe4 {[%clk 0:00:00]}  Rd4 {[%clk 0:00:14]} 0-1

[Event "December 19 Early 2023"]
[Site "https://www.chess.com"]
[Date "2023.12.19"]
[Round "4"]
[White "Xhembulla, Aleksander"]
[Black "Manukyan, Sargis V."]
[Result "1-0"]
[Board "121"]
[TimeControl "180+1"]
[WhiteFideId "4705114"]
[BlackFideId "13303465"]
[WhiteElo "2220"]
[BlackElo "2236"]
[WhiteTeam "ALB"]
[BlackTeam "ARM"]
[WhiteClock "0:00:38"]
[BlackClock "0:00:17"]

1. e4 {[%clk 0:03:00]}  e6 {[%clk 0:02:58]} 2. d4 {[%clk 0:02:53]}  d5 {[%clk 0:02:58]} 3. Nd2 {[%clk 0:02:54]}  Nc6 {[%clk 0:02:58]} 4. Ngf3 {[%clk 0:02:54]}  Nf6 {[%clk 0:02:58]} 5. Bd3 {[%clk 0:02:53]}  Nb4 {[%clk 0:02:55]} 6. O-O {[%clk 0:02:51]}  Nxd3 {[%clk 0:02:55]} 7. cxd3 {[%clk 0:02:51]}  Be7 {[%clk 0:02:52]} 8. Qe2 {[%clk 0:02:46]}  O-O {[%clk 0:02:52]} 9. Nb3 {[%clk 0:02:46]}  a5 {[%clk 0:02:50]} 10. a4 {[%clk 0:02:45]}  b6 {[%clk 0:02:50]} 11. Bf4 {[%clk 0:02:38]}  dxe4 {[%clk 0:02:47]} 12. dxe4 {[%clk 0:02:37]}  Ba6 {[%clk 0:02:48]} 13. Qc2 {[%clk 0:02:37]}  Bxf1 {[%clk 0:02:47]} 14. Rxf1 {[%clk 0:02:37]}  Rc8 {[%clk 0:02:37]} 15. Rd1 {[%clk 0:02:34]}  Qd7 {[%clk 0:02:35]} 16. Qc4 {[%clk 0:02:28]}  Nxe4 {[%clk 0:02:30]} 17. Ne5 {[%clk 0:02:27]}  Qd5 {[%clk 0:02:27]} 18. Qxd5 {[%clk 0:02:27]}  exd5 {[%clk 0:02:24]} 19. f3 {[%clk 0:02:27]}  Nd6 {[%clk 0:02:22]} 20. Nc6 {[%clk 0:02:25]}  Bf6 {[%clk 0:02:14]} 21. Rc1 {[%clk 0:02:25]}  Nc4 {[%clk 0:02:10]} 22. Rc2 {[%clk 0:02:25]}  g5 {[%clk 0:02:08]} 23. Be5 {[%clk 0:02:22]}  Kg7 {[%clk 0:01:51]} 24. Kf2 {[%clk 0:01:44]}  Bxe5 {[%clk 0:01:41]} 25. dxe5 {[%clk 0:01:44]}  Rfe8 {[%clk 0:01:41]} 26. Re2 {[%clk 0:01:41]}  Kg6 {[%clk 0:00:44]} 27. Nbd4 {[%clk 0:01:38]}  h5 {[%clk 0:00:42]} 28. b3 {[%clk 0:01:35]}  Na3 {[%clk 0:00:29]} 29. Re1 {[%clk 0:01:26]}  f6 {[%clk 0:00:22]} 30. e6 {[%clk 0:01:24]}  b5 {[%clk 0:00:17]} 31. axb5 {[%clk 0:01:23]}  a4 {[%clk 0:00:14]} 32. Ra1 {[%clk 0:01:19]}  Nxb5 {[%clk 0:00:13]} 33. Nxb5 {[%clk 0:01:20]}  Rxe6 {[%clk 0:00:13]} 34. Nbd4 {[%clk 0:01:20]}  Rxc6 {[%clk 0:00:08]} 35. Nxc6 {[%clk 0:01:20]}  Ra8 {[%clk 0:00:06]} 36. bxa4 {[%clk 0:01:19]}  Ra6 {[%clk 0:00:06]} 37. Nb4 {[%clk 0:01:18]}  Ra5 {[%clk 0:00:06]} 38. Ke3 {[%clk 0:01:17]}  Kf5 {[%clk 0:00:06]} 39. Nc6 {[%clk 0:01:16]}  Ra6 {[%clk 0:00:05]} 40. Nd4+ {[%clk 0:01:16]}  Ke5 {[%clk 0:00:05]} 41. Nb3 {[%clk 0:01:15]}  Kd6 {[%clk 0:00:05]} 42. Kd4 {[%clk 0:01:12]}  Rb6 {[%clk 0:00:05]} 43. Kc3 {[%clk 0:01:13]}  Rb7 {[%clk 0:00:04]} 44. a5 {[%clk 0:01:13]}  c5 {[%clk 0:00:04]} 45. a6 {[%clk 0:01:13]}  Ra7 {[%clk 0:00:04]} 46. Ra5 {[%clk 0:01:12]}  c4 {[%clk 0:00:02]} 47. Nd4 {[%clk 0:01:12]}  Kc7 {[%clk 0:00:02]} 48. Nb5+ {[%clk 0:00:45]}  Kb6 {[%clk 0:00:02]} 49. Nxa7 {[%clk 0:00:46]}  Kxa5 {[%clk 0:00:03]} 50. Nc6+ {[%clk 0:00:46]}  Kxa6 {[%clk 0:00:03]} 51. Nb4+ {[%clk 0:00:46]}  Kb5 {[%clk 0:00:03]} 52. Nxd5 {[%clk 0:00:47]}  Kc5 {[%clk 0:00:04]} 53. Nxf6 {[%clk 0:00:47]}  Kd6 {[%clk 0:00:05]} 54. Nxh5 {[%clk 0:00:47]}  Ke5 {[%clk 0:00:06]} 55. Kxc4 {[%clk 0:00:46]}  Kf5 {[%clk 0:00:07]} 56. Kd4 {[%clk 0:00:44]}  g4 {[%clk 0:00:08]} 57. fxg4+ {[%clk 0:00:44]}  Kg5 {[%clk 0:00:08]} 58. h3 {[%clk 0:00:43]}  Kh4 {[%clk 0:00:09]} 59. Ke5 {[%clk 0:00:43]}  Kg5 {[%clk 0:00:10]} 60. Ng3 {[%clk 0:00:42]}  Kh4 {[%clk 0:00:10]} 61. Nh1 {[%clk 0:00:42]}  Kg5 {[%clk 0:00:11]} 62. g3 {[%clk 0:00:42]}  Kh6 {[%clk 0:00:11]} 63. Kf6 {[%clk 0:00:42]}  Kh7 {[%clk 0:00:11]} 64. g5 {[%clk 0:00:42]}  Kh8 {[%clk 0:00:12]} 65. Kg6 {[%clk 0:00:43]}  Kg8 {[%clk 0:00:12]} 66. h4 {[%clk 0:00:43]}  Kh8 {[%clk 0:00:13]} 67. Kh6 {[%clk 0:00:43]}  Kg8 {[%clk 0:00:14]} 68. g6 {[%clk 0:00:44]}  Kh8 {[%clk 0:00:15]} 69. g7+ {[%clk 0:00:38]}  Kg8 {[%clk 0:00:16]} 70. h5 {[%clk 0:00:38]}  Kf7 {[%clk 0:00:15]} 71. Kh7 {[%clk 0:00:39]}  Kf6 {[%clk 0:00:15]} 72. g8=Q {[%clk 0:00:40]}  Kf5 {[%clk 0:00:16]} 73. h6 {[%clk 0:00:38]}  Ke4 {[%clk 0:00:17]} 1-0

[Event "December 19 Early 2023"]
[Site "https://www.chess.com"]
[Date "2023.12.19"]
[Round "4"]
[White "Lacasa Diaz, Josep Anton"]
[Black "Ezat, Mohamed"]
[Result "0-1"]
[Board "123"]
[TimeControl "180+1"]
[WhiteFideId "2203375"]
[BlackFideId "10600906"]
[WhiteElo "2338"]
[BlackElo "2367"]
[WhiteTeam "ESP"]
[BlackTeam "EGY"]
[WhiteClock "0:00:21"]
[BlackClock "0:01:23"]

1. e4 {[%clk 0:03:00]}  e5 {[%clk 0:02:57]} 2. Nf3 {[%clk 0:02:59]}  Nc6 {[%clk 0:02:56]} 3. Bb5 {[%clk 0:02:59]}  Nge7 {[%clk 0:02:55]} 4. Nc3 {[%clk 0:02:55]}  d6 {[%clk 0:02:55]} 5. d4 {[%clk 0:02:54]}  Bd7 {[%clk 0:02:52]} 6. O-O {[%clk 0:02:49]}  a6 {[%clk 0:02:51]} 7. Bxc6 {[%clk 0:02:45]}  Nxc6 {[%clk 0:02:50]} 8. dxe5 {[%clk 0:02:37]}  dxe5 {[%clk 0:02:50]} 9. h3 {[%clk 0:02:28]}  Be7 {[%clk 0:02:47]} 10. Nd5 {[%clk 0:02:27]}  O-O {[%clk 0:02:46]} 11. c4 {[%clk 0:02:26]}  Be6 {[%clk 0:02:45]} 12. Be3 {[%clk 0:02:25]}  h6 {[%clk 0:02:45]} 13. Qd2 {[%clk 0:02:21]}  Kh7 {[%clk 0:02:43]} 14. Rad1 {[%clk 0:02:17]}  Qc8 {[%clk 0:02:41]} 15. b3 {[%clk 0:02:05]}  Re8 {[%clk 0:02:32]} 16. Qe2 {[%clk 0:01:48]}  Bf8 {[%clk 0:02:27]} 17. Nh4 {[%clk 0:01:38]}  Ne7 {[%clk 0:02:25]} 18. Qh5 {[%clk 0:01:32]}  Ng6 {[%clk 0:02:21]} 19. Nxg6 {[%clk 0:01:23]}  fxg6 {[%clk 0:02:20]} 20. Qe2 {[%clk 0:01:00]}  b5 {[%clk 0:02:19]} 21. c5 {[%clk 0:00:55]}  Qb7 {[%clk 0:02:17]} 22. b4 {[%clk 0:00:42]}  Rad8 {[%clk 0:02:16]} 23. Qb2 {[%clk 0:00:35]}  Bxd5 {[%clk 0:02:12]} 24. exd5 {[%clk 0:00:34]}  Rxd5 {[%clk 0:02:12]} 25. Qb3 {[%clk 0:00:32]}  Red8 {[%clk 0:02:10]} 26. Rxd5 {[%clk 0:00:32]}  Qxd5 {[%clk 0:02:10]} 27. Qxd5 {[%clk 0:00:29]}  Rxd5 {[%clk 0:02:10]} 28. a4 {[%clk 0:00:30]}  Be7 {[%clk 0:01:32]} 29. Ra1 {[%clk 0:00:29]}  Bf6 {[%clk 0:01:25]} 30. axb5 {[%clk 0:00:29]}  axb5 {[%clk 0:01:25]} 31. Ra7 {[%clk 0:00:29]}  e4 {[%clk 0:01:23]} 32. Rxc7 {[%clk 0:00:21]}  Rd1+ {[%clk 0:01:23]} 0-1

[Event "December 19 Early 2023"]
[Site "https://www.chess.com"]
[Date "2023.12.19"]
[Round "4"]
[White "Vlassov, Nikolai"]
[Black "Kovacsy, Barnabas"]
[Result "1-0"]
[Board "124"]
[TimeControl "180+1"]
[WhiteFideId "4103360"]
[BlackFideId "769290"]
[WhiteElo "2351"]
[BlackElo "2130"]
[WhiteTeam "FID"]
[BlackTeam "HUN"]
[WhiteClock "0:02:03"]
[BlackClock "0:01:46"]

1. e4 {[%clk 0:03:00]}  c5 {[%clk 0:02:59]} 2. c3 {[%clk 0:03:00]}  d5 {[%clk 0:02:58]} 3. exd5 {[%clk 0:03:00]}  Qxd5 {[%clk 0:02:57]} 4. d4 {[%clk 0:03:00]}  Nf6 {[%clk 0:02:58]} 5. Nf3 {[%clk 0:03:00]}  e6 {[%clk 0:02:57]} 6. a3 {[%clk 0:03:00]}  Nc6 {[%clk 0:02:47]} 7. Be3 {[%clk 0:02:59]}  cxd4 {[%clk 0:02:47]} 8. cxd4 {[%clk 0:03:00]}  g6 {[%clk 0:02:47]} 9. Nc3 {[%clk 0:02:59]}  Qd8 {[%clk 0:02:46]} 10. Bb5 {[%clk 0:02:51]}  Bd7 {[%clk 0:02:43]} 11. d5 {[%clk 0:02:45]}  exd5 {[%clk 0:02:37]} 12. Nxd5 {[%clk 0:02:45]}  Nxd5 {[%clk 0:02:33]} 13. Qxd5 {[%clk 0:02:45]}  Bg7 {[%clk 0:02:26]} 14. O-O-O {[%clk 0:02:28]}  a6 {[%clk 0:02:18]} 15. Bc5 {[%clk 0:02:10]}  axb5 {[%clk 0:02:01]} 16. Rhe1+ {[%clk 0:02:08]}  Be6 {[%clk 0:01:58]} 17. Rxe6+ {[%clk 0:02:07]}  fxe6 {[%clk 0:01:59]} 18. Qxe6+ {[%clk 0:02:07]}  Qe7 {[%clk 0:01:58]} 19. Bxe7 {[%clk 0:02:06]}  Nxe7 {[%clk 0:01:59]} 20. Rd7 {[%clk 0:02:03]}  Rc8+ {[%clk 0:01:50]} 21. Kb1 {[%clk 0:02:03]}  Bf8 {[%clk 0:01:46]} 22. Ne5 {[%clk 0:02:03]} 1-0